bitfinex/quotes_ETHUSD_20240603
["timestamp","ask_amount","ask_price","bid_price","bid_amount"]
[1717419922435,0.54488123,3840.2,3839.8,7.41]
[1717419922762,2.38228946,3840.4,3839.8,7.41]
[1717419922763,0.54488123,3840.3,3839.8,7.41]
[1717419922921,0.54488123,3840.4,3839.8,7.41]
[1717419923362,0.54488123,3840.3,3839.8,7.41]
[1717419924386,2.67141499,3840.4,3839.8,7.41]
[1717419924538,2.67141499,3840.4,3839.5,2.60448]
[1717419924539,0.54488123,3840.3,3839.5,2.60448]
[1717419924735,0.54488123,3840.3,3839.4,7.41]
[1717419924941,2.60411,3840.1,3839.4,7.41]
[1717419925136,1.10782374,3840.0,3839.4,7.41]
[1717419925407,1.56362483,3839.7,3839.4,7.41]
[1717419925552,2.10850606,3839.7,3839.4,7.41]
[1717419925741,2.67144857,3839.7,3839.4,7.41]
[1717419925944,0.54488123,3839.6,3839.4,7.41]
[1717419926157,2.67144857,3839.6,3838.6,2.4162]
[1717419926357,2.67144857,3839.6,3838.5,10.01513]
[1717419926769,2.10850606,3839.4,3838.5,7.41]
[1717419927084,2.10850606,3839.4,3837.7,1.859]
[1717419927085,0.54488123,3839.1,3837.7,4.87039]
[1717419927250,2.60485,3839.0,3837.7,4.87039]
[1717419927455,1.56362483,3838.6,3837.7,4.87039]
[1717419927639,0.54488123,3838.6,3837.7,4.87039]
[1717419927840,2.10850606,3838.6,3837.7,4.87039]
[1717419928068,1.10805892,3838.5,3837.7,4.87039]
[1717419928263,0.54488123,3838.5,3837.7,4.87039]
[1717419928470,1.10805561,3838.6,3837.7,4.87039]
[1717419928779,0.54488123,3838.6,3837.7,4.87039]
[1717419928991,0.54488123,3838.5,3837.7,4.87039]
[1717419929281,1.10806415,3838.6,3837.7,4.87039]
[1717419929488,0.54488123,3838.6,3837.7,4.87039]
[1717419930081,0.54488123,3838.5,3837.7,4.87039]
[1717419930643,0.54488123,3838.6,3838.1,5.01445]
[1717419930848,0.54488123,3838.6,3838.4,2.60519]
[1717419931075,0.54488123,3838.6,3838.5,0.55]
[1717419931455,0.54488123,3839.3,3838.6,2.60511]
[1717419931693,0.54488123,3839.5,3838.8,2.60497]
[1717419931891,2.10923161,3839.8,3839.0,2.60481]
[1717419932190,0.54488123,3839.9,3839.3,2.60459]
[1717419932499,0.54488123,3840.2,3839.5,2.60448]
[1717419932659,0.54488123,3840.3,3839.6,0.55]
[1717419932866,0.54488123,3840.2,3839.6,0.55]
[1717419934649,0.54488123,3840.1,3839.6,0.55]
[1717419935738,0.54488123,3840.1,3839.2,7.41]
[1717419936032,0.54488123,3839.8,3839.2,7.41]
[1717419936250,0.54488123,3839.8,3838.8,15.23]
[1717419936251,0.54488123,3839.9,3839.3,2.60464]
[1717419936428,0.54488123,3840.0,3839.3,2.60464]
[1717419937044,0.54488123,3839.9,3839.4,0.55]
[1717419937943,0.54488123,3839.8,3839.4,0.55]
[1717419939611,0.54488123,3839.7,3839.4,0.55]
[1717419939942,0.81903767,3839.9,3839.5,2.60449]
[1717419939943,0.54488123,3839.9,3839.5,2.60449]
[1717419940130,0.54488123,3839.9,3839.6,0.55]
[1717419941453,1.08407129,3840.2,3839.6,0.55]
[1717419941454,0.54488123,3839.8,3839.6,0.55]
[1717419941653,0.54488123,3839.9,3839.6,0.55]
[1717419942171,0.54488123,3840.0,3839.6,0.55]
[1717419944152,0.54488123,3840.0,3839.7,2.60435]
[1717419944349,0.54488123,3840.0,3839.8,0.55]
[1717419944646,0.54488123,3840.1,3839.8,3.55]
[1717419944849,0.54488123,3839.9,3839.3,2.60459]
[1717419945009,0.54488123,3839.9,3839.4,3.55]
[1717419945213,0.54488123,3839.8,3839.5,2.60447]
[1717419945414,0.54488123,3839.9,3839.6,0.55]
[1717419945640,0.68127312,3839.9,3839.6,0.55]
[1717419945954,0.54488123,3839.8,3839.6,0.55]
[1717419946257,0.54488123,3839.7,3839.5,2.60447]
[1717419946453,0.54464678,3839.7,3839.5,2.60447]
[1717419946916,0.54464678,3839.8,3839.5,2.60447]
[1717419947349,0.54464678,3839.8,3839.0,3.0]
[1717419947350,0.54464678,3839.9,3839.7,2.60437]
[1717419947549,0.54464678,3839.9,3839.8,0.55]
[1717419947973,0.54464678,3840.0,3839.8,0.55]
[1717419948265,0.54464678,3840.1,3839.8,0.55]
[1717419950500,0.54464678,3840.1,3839.9,2.60423]
[1717419950969,0.54464678,3840.2,3839.9,2.60423]
[1717419951328,0.54464678,3840.2,3840.1,2.60409]
[1717419951846,0.54464678,3840.2,3840.1,3.15409]
[1717419952045,0.54464678,3840.4,3840.1,3.15409]
[1717419952250,0.54464678,3840.4,3840.2,0.55]
[1717419952455,0.54464678,3840.4,3840.3,2.60396]
[1717419952664,0.54464678,3840.4,3840.3,3.15396]
[1717419952868,0.54464678,3840.5,3840.3,3.15396]
[1717419953174,0.54464678,3840.5,3840.4,0.55]
[1717419954095,0.81903767,3840.6,3840.4,0.55]
[1717419954485,0.54447648,3840.5,3840.4,0.55]
[1717419956572,2.75207341,3841.4,3840.4,0.55]
[1717419956573,0.54447648,3840.6,3840.4,0.55]
[1717419957071,0.54447648,3840.6,3840.5,2.60382]
[1717419959494,0.54447648,3840.7,3840.5,3.15382]
[1717419959705,0.54447648,3840.7,3840.6,0.55]
[1717419962871,0.54447648,3840.7,3840.5,2.60382]
[1717419963077,0.89344358,3840.7,3840.5,2.60382]
[1717419964310,0.54447648,3840.7,3840.5,2.60382]
[1717419964462,0.54447648,3840.7,3840.6,0.55]
[1717419964854,0.54447648,3840.8,3840.6,0.55]
[1717419965858,0.54447648,3840.8,3840.7,2.60369]
[1717419966065,0.54447648,3840.8,3840.7,3.15369]
[1717419966267,1.10726117,3840.9,3840.7,6.524059]
[1717419966504,0.54447648,3841.2,3840.9,2.60355]
[1717419966895,0.54447648,3841.2,3841.1,2.60342]
[1717419968184,1.10720083,3841.3,3841.1,3.15342]
[1717419968382,0.54447648,3841.5,3841.2,0.55]
[1717419968582,1.10716541,3841.5,3841.2,0.55]
[1717419968780,0.54447648,3841.5,3841.2,0.55]
[1717419969008,0.54447648,3841.4,3841.2,0.55]
[1717419969387,0.54447648,3841.4,3841.1,2.60342]
[1717419969785,0.89341027,3841.4,3841.1,2.60342]
[1717419970573,0.54447648,3841.3,3841.1,2.60342]
[1717419970803,1.10720976,3841.3,3840.8,2.60362]
[1717419970985,2.67034459,3841.3,3840.9,0.55]
[1717419971568,2.67034459,3841.3,3841.0,2.60347]
[1717419971793,2.67034459,3841.3,3841.1,0.55]
[1717419971999,0.54447648,3841.3,3841.1,0.55]
[1717419972516,2.12586634,3841.4,3841.2,2.918697]
[1717419972517,0.54447648,3841.4,3841.2,2.918697]
[1717419972674,2.67032947,3841.5,3841.4,2.60321]
[1717419972882,2.2693255,3842.3,3841.4,2.60321]
[1717419972883,2.10761131,3841.7,3841.4,2.60321]
[1717419973417,0.54447648,3841.7,3841.1,0.55]
[1717419973708,0.54447648,3841.5,3841.1,0.55]
[1717419973911,0.54447648,3841.4,3841.1,0.55]
[1717419974914,0.54447648,3841.2,3841.1,0.55]
[1717419975276,1.3817717,3841.3,3841.1,0.55]
[1717419975586,3.56755656,3841.3,3841.1,0.55]
[1717419975774,3.00481957,3841.3,3841.1,0.55]
[1717419975975,2.94480928,3841.2,3840.6,2.6037]
[1717419976170,1.70683719,3841.3,3840.6,2.6037]
[1717419976171,0.54425774,3840.9,3840.7,0.55]
[1717419976383,0.81903767,3840.9,3840.7,0.55]
[1717419976684,0.81903767,3840.9,3840.8,2.60362]
[1717419976905,0.81903767,3841.0,3840.8,3.15362]
[1717419977102,0.81903767,3841.0,3840.9,0.55]
[1717419977926,1.38179527,3841.0,3840.8,2.60362]
[1717419978132,0.81903767,3841.0,3840.6,2.60372]
[1717419978286,0.54476971,3840.8,3840.7,0.55]
[1717419978470,0.54481334,3840.8,3840.7,0.55]
[1717419978983,0.81903767,3840.9,3840.7,0.55]
[1717419979601,0.81903767,3840.8,3840.7,0.55]
[1717419979923,1.38182435,3840.8,3840.7,0.55]
[1717419980744,2.12600501,3840.8,3840.7,0.55]
[1717419981054,3.66727472,3840.8,3840.5,7.41]
[1717419981257,1.38014227,3840.7,3840.5,7.41]
[1717419981435,0.81735559,3840.6,3840.5,7.41]
[1717419981637,1.38014227,3840.6,3840.5,7.96]
[1717419982028,2.12600501,3840.6,3840.5,7.96]
[1717419982917,0.56278668,3840.6,3840.5,7.96]
[1717419983250,0.56278668,3840.6,3840.5,0.55]
[1717419983405,1.65307893,3840.6,3840.3,0.55]
[1717419983611,0.81768609,3840.4,3840.3,0.55]
[1717419984313,0.56284652,3840.4,3840.3,0.55]
[1717419985052,3.21657419,3840.4,3840.3,0.55]
[1717419986433,1.65313877,3840.4,3840.3,0.55]
[1717419987066,2.65372767,3840.5,3840.3,0.55]
[1717419987268,1.09029225,3840.4,3840.3,0.55]
[1717419988339,2.52785158,3840.4,3839.9,3.0]
[1717419988568,2.52785158,3840.4,3840.0,0.55]
[1717419988569,0.81819562,3840.1,3840.0,0.55]
[1717419988770,1.0909275,3840.2,3839.9,0.55]
[1717419988958,1.0909275,3840.1,3839.9,0.55]
[1717419989380,1.0909275,3840.0,3839.9,0.55]
[1717419991076,3.49015994,3840.0,3839.9,0.55]
[1717419991239,0.56291656,3840.0,3839.9,0.55]
[1717419991454,3.49015994,3840.0,3839.9,0.55]
[1717419991849,1.36380796,3840.0,3839.9,0.55]
[1717419992039,2.92749358,3840.0,3839.9,0.55]
[1717419992249,1.92673478,3840.0,3839.9,0.55]
[1717419993135,1.36380796,3840.1,3839.9,0.55]
[1717419993942,1.36380796,3840.0,3839.9,0.55]
[1717419995537,1.36380796,3840.0,3839.4,2.6045]
[1717419995769,0.81820538,3839.7,3839.5,0.55]
[1717419995969,0.81820538,3839.7,3839.6,2.60443]
[1717419996325,0.81820538,3839.7,3839.6,3.15443]
[1717419996634,0.81820538,3839.8,3839.6,3.753393]
[1717419996776,0.81820538,3839.8,3839.7,0.55]
[1717419997126,0.81820538,3839.9,3839.8,2.6043]
[1717419997346,0.81820538,3839.9,3839.8,3.1543]
[1717419997639,0.81820538,3840.0,3839.8,3.1543]
[1717419997844,0.81820538,3840.0,3839.9,0.86543]
[1717420000312,0.81820538,3840.1,3840.0,2.60416]
[1717420000488,0.81820538,3840.1,3840.0,3.15416]
[1717420001014,0.81820538,3840.1,3840.0,5.40956]
[1717420002625,0.81820538,3840.2,3840.0,5.40956]
[1717420002807,0.81820538,3840.2,3840.1,0.55]
[1717420003171,0.81820538,3840.3,3840.2,2.60403]
[1717420003400,0.81820538,3840.4,3840.2,3.15403]
[1717420003597,0.81820538,3840.4,3840.3,0.55]
[1717420005402,0.54521176,3840.5,3840.4,2.60389]
[1717420005643,0.54521176,3840.5,3840.4,3.15389]
[1717420006636,0.81820538,3840.6,3840.4,3.15389]
[1717420006838,0.81820538,3840.6,3840.5,0.55]
[1717420007058,0.81820538,3840.7,3840.6,2.60375]
[1717420007233,0.81820538,3840.8,3840.6,3.15375]
[1717420007538,0.81820538,3840.8,3840.7,0.55]
[1717420007965,2.1988,3840.7,3840.3,2.60395]
[1717420008107,0.54515854,3840.4,3840.3,2.60395]
[1717420008509,2.65429357,3840.4,3840.3,2.60395]
[1717420008837,1.09094051,3840.4,3840.3,2.60395]
[1717420009146,0.81780511,3840.5,3840.3,2.60395]
[1717420009558,0.81780511,3840.5,3840.4,0.55]
[1717420009924,1.09094051,3840.6,3840.5,2.60382]
[1717420010138,1.09094051,3840.6,3840.5,3.15382]
[1717420010508,3.21708558,3840.6,3840.5,3.15382]
[1717420010709,0.56279201,3840.6,3840.5,3.15382]
[1717420011024,0.81778553,3840.6,3840.5,3.15382]
[1717420011203,0.81778553,3840.7,3840.5,3.15382]
[1717420011405,0.81778553,3840.7,3840.6,0.55]
[1717420012538,1.09094051,3840.8,3840.7,2.60369]
[1717420012711,1.09094051,3840.8,3840.7,3.15369]
[1717420013050,1.65370693,3840.8,3840.7,3.15369]
[1717420015556,1.09094051,3840.8,3840.7,3.15369]
[1717420016409,2.1988,3840.7,3840.3,2.60391]
[1717420016611,1.09081963,3840.4,3840.3,2.60391]
[1717420016836,0.56280816,3840.4,3840.3,2.60391]
[1717420017055,1.36352454,3840.4,3840.3,2.60391]
[1717420017213,2.50241064,3840.4,3840.3,2.60391]
[1717420017419,3.50334868,3840.4,3840.3,2.60391]
[1717420017632,3.50334868,3840.4,3839.9,2.6042]
[1717420017633,4.06615684,3840.4,3839.9,2.6042]
[1717420017827,0.81822009,3840.0,3839.9,2.6042]
[1717420018815,1.09096012,3840.1,3839.9,2.6042]
[1717420019156,1.550391,3840.1,3839.5,2.60445]
[1717420019353,0.54564282,3839.7,3839.5,2.60445]
[1717420019657,0.54564282,3839.6,3839.5,2.60445]
[1717420019830,0.45943088,3840.1,3839.5,2.60445]
[1717420019831,0.81846424,3839.7,3839.5,2.60445]
[1717420020165,1.09096012,3839.7,3839.5,2.60445]
[1717420020463,2.92727074,3839.7,3839.5,2.60445]
[1717420020665,1.36370894,3839.6,3839.0,2.60479]
[1717420020956,0.81870377,3839.1,3839.0,2.60479]
[1717420021370,1.09160503,3839.2,3839.0,2.60479]
[1717420021733,2.65551165,3839.2,3839.0,2.60479]
[1717420021930,1.09160503,3839.2,3839.0,2.60479]
[1717420022127,0.81859361,3839.1,3839.0,2.60479]
[1717420022338,0.81859361,3839.1,3839.0,3.15479]
[1717420023624,0.81859361,3839.2,3839.0,4.211269]
[1717420023813,1.09160503,3839.3,3839.2,2.6047]
[1717420024018,0.81859361,3839.4,3839.2,3.1547]
[1717420024217,0.81859361,3839.4,3839.3,2.2638]
[1717420024476,0.54553782,3839.5,3839.4,2.60457]
[1717420024650,0.54553782,3839.5,3839.4,3.15457]
[1717420025017,0.54553782,3839.6,3839.4,3.15457]
[1717420025218,0.54553782,3839.6,3839.5,0.55]
[1717420025901,1.09160503,3839.7,3839.6,2.60443]
[1717420026161,1.09160503,3839.7,3839.6,3.15443]
[1717420026875,1.09160503,3839.8,3839.6,3.15443]
[1717420027041,1.38434978,3839.8,3839.6,3.15443]
[1717420027240,1.09160503,3839.7,3839.6,3.15443]
[1717420027446,1.09160503,3839.7,3839.2,2.60466]
[1717420027652,0.81834322,3839.4,3839.3,0.55]
[1717420028037,1.56358791,3839.4,3839.2,2.60466]
[1717420028336,1.09127291,3839.3,3839.2,2.60466]
[1717420028535,0.56295334,3839.3,3839.2,2.60466]
[1717420028963,3.49040081,3839.3,3839.2,2.60466]
[1717420029361,1.09086792,3839.3,3839.2,2.60466]
[1717420029571,0.56302669,3839.3,3838.8,2.60495]
[1717420029787,0.54543599,3838.9,3838.8,2.60495]
[1717420029991,0.81815357,3838.9,3838.8,2.60495]
[1717420030892,0.81815357,3839.0,3838.8,2.60495]
[1717420031451,1.09087143,3839.2,3838.8,2.60495]
[1717420031452,0.81815357,3838.9,3838.8,2.60495]
[1717420031658,0.81815357,3838.9,3838.8,3.15495]
[1717420031966,0.54515632,3838.9,3838.8,3.15495]
[1717420032872,0.54515632,3839.0,3838.8,3.15495]
[1717420033194,0.54515632,3839.0,3838.9,0.55]
[1717420033420,0.54515632,3839.2,3839.0,2.60484]
[1717420033570,0.54515632,3839.2,3839.1,0.55]
[1717420034698,0.81815357,3839.3,3839.2,2.6047]
[1717420034907,0.81815357,3839.3,3839.2,3.1547]
[1717420036154,0.48362949,3839.3,3838.8,2.60492]
[1717420036438,0.54483376,3839.0,3838.8,2.60492]
[1717420037615,0.54483376,3839.0,3838.9,0.55]
[1717420038442,0.54483376,3839.1,3838.9,0.55]
[1717420039226,0.54483376,3839.1,3839.0,2.60484]
[1717420042513,0.83743781,3839.1,3838.6,2.60505]
[1717420042717,0.83743781,3839.1,3838.1,21.43916389]
[1717420042903,0.54483376,3839.0,3838.2,3.55]
[1717420043102,0.54483376,3839.0,3838.7,2.60499]
[1717420043420,0.54483376,3839.0,3838.8,0.55]
[1717420044229,0.54483376,3839.0,3838.9,2.60491]
[1717420044436,0.54483376,3839.0,3838.9,3.15491]
[1717420044841,1.10789054,3839.1,3838.9,3.15491]
[1717420045049,0.54483376,3839.1,3838.9,3.15491]
[1717420045232,1.10787626,3839.1,3838.9,3.15491]
[1717420045436,0.54483376,3839.1,3838.9,3.15491]
[1717420045637,1.10787625,3839.1,3838.9,3.15491]
[1717420045849,1.10787625,3839.1,3838.9,0.55]
[1717420045850,0.54483376,3839.1,3838.9,0.55]
[1717420046235,2.10889987,3839.1,3838.9,0.55]
[1717420046925,1.56406611,3839.0,3838.9,0.55]
[1717420047151,2.12711252,3839.0,3838.9,0.55]
[1717420047353,1.56406611,3839.0,3838.9,0.55]
[1717420047557,1.56406611,3839.0,3838.3,2.60527]
[1717420047732,1.56406611,3839.0,3838.2,3.0]
[1717420047733,2.10889987,3839.0,3838.2,3.0]
[1717420047934,2.12711252,3838.9,3838.3,0.55]
[1717420048261,2.33806611,3838.6,3838.1,7.41]
[1717420048420,1.56406611,3838.2,3837.6,21.9519]
[1717420048626,2.12711252,3838.1,3837.6,25.37150763]
[1717420048821,2.12711252,3838.1,3837.6,24.59750763]
[1717420049223,2.12711252,3838.1,3837.3,12.68257856]
[1717420049441,2.12711252,3838.1,3837.2,2.3119]
[1717420049442,1.56406611,3837.9,3837.2,2.3119]
[1717420049639,1.56406611,3837.8,3837.2,2.3119]
[1717420049825,1.56406611,3837.6,3837.2,2.3119]
[1717420050025,1.56406611,3837.5,3837.0,7.41]
[1717420050281,2.12711252,3837.5,3837.0,7.41]
[1717420050461,0.54483376,3837.7,3837.0,7.41]
[1717420050462,0.54483376,3837.6,3837.0,7.41]
[1717420050626,1.56471836,3837.5,3837.0,7.41]
[1717420050829,1.56471836,3837.5,3836.2,0.40824537]
[1717420050830,2.12801697,3837.4,3836.3,12.50333]
[1717420051030,0.56333486,3837.3,3836.3,12.50333]
[1717420051446,2.71923095,3837.5,3836.6,2.60644]
[1717420051646,0.5633413,3837.4,3836.6,2.60644]
[1717420052162,0.60957814,3837.5,3836.6,2.60644]
[1717420052367,1.17289847,3837.5,3836.7,0.55]
[1717420052566,3.77878847,3837.5,3836.7,0.55]
[1717420052727,3.21546814,3837.5,3836.7,0.55]
[1717420055361,0.7523921,3837.4,3836.7,0.55]
[1717420056063,2.60589,3837.5,3836.7,0.55]
[1717420056261,2.60589,3837.5,3836.3,7.41]
[1717420056835,2.60589,3837.5,3836.4,2.60656]
[1717420057163,2.60589,3837.5,3836.6,2.60641]
[1717420057884,1.56481905,3837.7,3836.8,2.60631]
[1717420058085,2.3379504,3837.7,3836.9,0.55]
[1717420058255,2.90128421,3837.7,3836.9,0.55]
[1717420058642,1.33646516,3837.7,3836.9,0.55]
[1717420059254,0.77313135,3837.7,3836.9,0.55]
[1717420059481,2.90122431,3837.7,3836.9,0.55]
[1717420059686,1.56477424,3837.7,3836.9,0.55]
[1717420059863,0.56333388,3837.8,3836.9,0.55]
[1717420060384,4.17038424,3837.9,3837.0,2.60616]
[1717420060587,2.60561,3837.9,3837.1,0.55]
[1717420060884,1.56468057,3837.9,3837.2,2.60606]
[1717420061093,1.56468057,3837.9,3837.3,0.55]
[1717420061891,2.17423911,3837.9,3837.3,0.55]
[1717420062050,2.71907287,3837.9,3837.3,0.55]
[1717420062252,3.28235324,3837.9,3837.3,0.55]
[1717420062539,2.12796094,3837.8,3837.3,0.55]
[1717420062751,4.80455,3837.7,3836.8,10.01629]
[1717420062994,2.6727947,3837.6,3836.8,10.01629]
[1717420063148,1.56468057,3837.5,3836.8,10.01629]
[1717420064198,1.56468057,3837.5,3836.9,0.55]
[1717420064368,2.6727947,3837.6,3836.9,0.55]
[1717420064549,0.56334852,3837.5,3836.9,0.55]
[1717420064975,0.28334852,3837.5,3836.9,0.55]
[1717420065750,3.01161303,3837.6,3836.9,0.55]
[1717420066076,2.10969962,3837.7,3837.0,2.60619]
[1717420066278,2.10969962,3837.7,3837.1,0.55]
[1717420066470,1.56486586,3837.7,3837.1,0.55]
[1717420066668,1.56486586,3837.7,3837.2,2.60605]
[1717420066864,2.10969962,3838.0,3837.3,0.55]
[1717420067368,1.56465101,3837.9,3837.3,0.55]
[1717420067877,2.10948477,3838.0,3837.3,0.55]
[1717420068086,2.10948477,3838.0,3837.5,2.60585]
[1717420068260,2.10948477,3838.0,3837.6,0.55]
[1717420068589,1.56465101,3838.1,3837.6,0.55]
[1717420068816,1.56465101,3838.1,3837.7,2.60571]
[1717420068961,1.56465101,3838.5,3838.0,2.60547]
[1717420069295,2.60495,3838.9,3838.0,2.60547]
[1717420069296,2.10948477,3838.7,3838.0,2.60547]
[1717420069454,1.56465101,3838.8,3838.2,2.60537]
[1717420069794,1.85732455,3838.8,3838.2,2.60537]
[1717420070121,1.56465101,3838.7,3838.3,0.55]
[1717420070893,2.10948477,3838.7,3838.3,0.55]
[1717420072335,2.10913279,3838.7,3838.3,0.55]
[1717420072533,0.54483376,3838.6,3838.3,0.55]
[1717420072733,0.8374721,3838.6,3838.3,0.55]
[1717420073033,2.40177113,3838.6,3838.3,0.55]
[1717420073195,0.8374721,3838.6,3838.3,0.55]
[1717420073632,0.8374721,3838.6,3837.5,7.41]
[1717420073633,2.1988,3838.5,3837.5,7.41]
[1717420073834,2.1988,3838.5,3837.6,0.55]
[1717420073835,4.30795347,3838.5,3837.6,0.55]
[1717420074025,0.54483376,3838.1,3837.6,0.55]
[1717420074724,0.54483376,3838.1,3837.5,7.41]
[1717420075058,0.54483376,3837.9,3837.5,7.41]
[1717420075349,2.10915347,3837.8,3837.5,7.41]
[1717420075507,0.54483376,3837.7,3837.5,7.41]
[1717420075710,0.54483376,3837.7,3837.0,2.60614]
[1717420076405,2.10915347,3837.6,3837.1,0.55]
[1717420077242,2.10915347,3837.6,3837.0,2.60614]
[1717420077426,1.56431971,3837.4,3837.0,2.60614]
[1717420077630,2.12758817,3837.4,3837.0,2.60614]
[1717420077834,1.56431971,3837.4,3837.0,2.60614]
[1717420078738,1.56431971,3837.4,3837.1,0.55]
[1717420078945,1.56431971,3837.6,3837.1,0.55]
[1717420079147,2.12760056,3837.6,3837.1,0.55]
[1717420079462,1.56431971,3837.6,3837.1,0.55]
[1717420079659,2.12760056,3837.5,3837.1,0.55]
[1717420079897,1.56431971,3837.5,3837.1,0.55]
[1717420080160,0.56329792,3837.4,3837.1,0.55]
[1717420080318,2.12801437,3837.5,3837.1,0.55]
[1717420080526,1.56471645,3837.5,3837.1,0.55]
[1717420080721,1.91372633,3837.5,3836.6,2.60642]
[1717420080922,0.81725065,3837.3,3836.6,2.60642]
[1717420081187,1.56471645,3837.0,3836.6,2.60642]
[1717420081926,2.12801437,3837.0,3836.6,2.60642]
[1717420082559,2.12801437,3837.0,3836.7,0.55]
[1717420082757,2.47702425,3837.0,3836.3,7.41]
[1717420082959,2.67284813,3836.9,3836.3,7.41]
[1717420083165,1.56471645,3836.9,3836.3,7.41]
[1717420083394,2.6729552,3836.9,3836.3,7.41]
[1717420083657,2.10955021,3836.9,3836.3,7.41]
[1717420084369,2.10955021,3836.9,3836.4,2.60659]
[1717420084520,2.6732179,3836.9,3836.4,2.60659]
[1717420084723,2.1098221,3836.9,3836.6,2.60646]
[1717420084924,1.09087143,3837.3,3836.7,0.55]
[1717420084925,2.1098221,3837.0,3836.7,0.55]
[1717420085836,0.54483376,3836.9,3836.7,0.55]
[1717420086139,2.6731525,3837.0,3836.7,0.55]
[1717420086349,0.54483376,3836.9,3836.6,2.60646]
[1717420087154,0.54483376,3837.0,3836.7,0.55]
[1717420087349,0.54483376,3837.1,3836.8,2.60633]
[1717420087566,0.54483376,3837.1,3836.9,0.55]
[1717420087946,1.10817368,3837.2,3836.9,0.55]
[1717420088259,0.54483376,3837.1,3836.9,0.55]
[1717420089382,0.54483376,3837.0,3836.9,0.55]
[1717420090445,0.54502055,3837.0,3836.9,0.55]
[1717420090650,0.54502078,3837.0,3836.9,0.55]
[1717420091000,0.81725065,3837.1,3836.9,0.55]
[1717420092402,0.81725065,3837.0,3836.9,0.55]
[1717420092911,0.81725065,3837.1,3836.9,0.55]
[1717420093689,0.81725065,3837.0,3836.9,0.55]
[1717420093905,1.09087143,3837.1,3836.9,0.55]
[1717420094258,1.09087143,3837.0,3836.9,0.55]
[1717420095657,1.09087143,3837.0,3836.4,2.60655]
[1717420095855,0.81891185,3836.6,3836.4,2.60655]
[1717420096060,0.81891185,3836.5,3836.4,2.60655]
[1717420096598,1.09087143,3836.6,3836.4,2.60655]
[1717420097597,1.09087143,3836.6,3836.5,0.55]
[1717420098098,1.09087143,3836.7,3836.5,0.55]
[1717420099984,1.09087143,3836.6,3836.5,0.55]
[1717420100494,1.09087143,3836.7,3836.5,0.55]
[1717420102332,0.56341932,3836.6,3836.5,0.55]
[1717420102563,1.65429075,3836.6,3836.5,0.55]
[1717420102733,3.67721043,3836.6,3836.0,2.60681]
[1717420103031,0.81863801,3836.1,3835.7,7.41]
[1717420103235,0.54569175,3835.8,3835.7,7.41]
[1717420103394,1.09151735,3835.8,3835.6,2.60713]
[1717420103591,2.12900595,3835.7,3835.6,2.60713]
[1717420103925,0.81860208,3835.7,3835.6,2.60713]
[1717420104113,1.72969037,3835.7,3835.1,2.60745]
[1717420104309,0.54559167,3835.5,3835.1,2.60745]
[1717420104598,0.54559167,3835.5,3834.5,2.4612]
[1717420104599,0.54559167,3835.2,3834.5,2.4612]
[1717420105234,0.54559167,3835.3,3834.5,2.4612]
[1717420105446,0.54559167,3835.1,3834.5,2.4612]
[1717420105922,0.54559167,3835.0,3834.5,2.4612]
[1717420106126,0.54559167,3835.0,3834.6,2.60783]
[1717420106668,0.54559167,3835.0,3834.7,0.55]
[1717420107164,0.54559167,3835.1,3834.7,0.55]
[1717420107467,0.8183875,3835.3,3834.7,0.55]
[1717420107468,0.54559167,3835.2,3834.7,0.55]
[1717420107621,0.54559167,3835.2,3834.8,2.60766]
[1717420107825,0.54559167,3835.4,3835.1,2.4613]
[1717420108031,0.8183875,3835.6,3835.2,1.111886]
[1717420108032,0.54559167,3835.6,3835.2,1.111886]
[1717420108232,0.54559167,3835.6,3835.2,0.55]
[1717420109448,0.54559167,3835.7,3835.2,0.55]
[1717420110122,0.54559167,3835.7,3835.0,2.60756]
[1717420110473,0.54559167,3835.7,3834.7,7.41]
[1717420110474,2.74439167,3835.5,3834.7,7.41]
[1717420110761,1.05841976,3835.4,3834.8,0.55]
[1717420111063,1.05841976,3835.4,3834.7,7.41]
[1717420111272,0.54559167,3835.3,3834.7,7.41]
[1717420111421,0.54559167,3835.2,3834.7,7.41]
[1717420112430,2.12915266,3835.3,3834.7,7.41]
[1717420112431,0.54559167,3835.3,3834.7,7.41]
[1717420112630,1.10972799,3835.3,3834.7,7.41]
[1717420113427,0.54559167,3835.2,3834.7,7.41]
[1717420114026,0.54559167,3835.1,3834.7,7.41]
[1717420114255,0.54559167,3835.2,3834.7,7.41]
[1717420114566,0.54559167,3835.1,3834.7,7.41]
[1717420114741,0.40575709,3835.0,3834.6,2.60782]
[1717420116224,0.54559167,3835.1,3834.6,2.60782]
[1717420116428,0.54559167,3835.2,3834.6,2.60782]
[1717420117787,0.54559167,3835.3,3834.6,2.60782]
[1717420117991,0.54559167,3835.4,3834.6,5.00242]
[1717420118488,0.54559167,3835.4,3834.6,2.60782]
[1717420118688,1.42832184,3835.4,3834.6,2.60782]
[1717420119397,0.54559167,3835.3,3834.6,2.60782]
[1717420120463,0.54559167,3835.4,3834.6,2.60782]
[1717420121599,0.54559167,3835.3,3834.6,2.60782]
[1717420121757,1.3191701,3835.3,3834.6,2.60782]
[1717420122494,0.77357843,3835.3,3834.6,2.60782]
[1717420123097,1.3191701,3835.3,3834.6,2.60782]
[1717420123652,0.77357843,3835.3,3834.6,2.60782]
[1717420123853,1.88284641,3835.3,3834.6,2.60782]
[1717420124077,1.3191701,3835.3,3834.6,2.60782]
[1717420124256,2.88498524,3835.3,3834.6,2.60782]
[1717420124453,0.64658567,3835.2,3834.6,2.60782]
[1717420124791,2.6750908,3835.2,3834.6,2.60782]
[1717420124965,2.11140681,3835.3,3834.6,2.60782]
[1717420125296,0.54559167,3835.3,3834.6,2.60782]
[1717420125540,2.67501964,3835.2,3834.6,2.60782]
[1717420125658,2.12942797,3835.1,3834.6,2.60782]
[1717420125859,2.11134753,3835.1,3834.6,2.60782]